Cogmind - Beta 14 @@@ ROGUE MODE // 2025.03.03 @ 16:07:36 Player: REN Result: Destroyed by S-10 Pest with Light Assault Rifle Performance ------------- Evolutions (0) 0 Regions Visited (1) 200 Robots Destroyed (6) 30 Value Destroyed (78) 78 Prototype IDs (0) 0 Alien Tech Used (0) 0 Bonus (0) 0 TOTAL SCORE: 308 Bonus ------- None Cogmind --------- Core Integrity 0/250 Matter 290/300 Energy 100/100 System Corruption 0% Temperature Cool (0) Movement Core (200) Ox3 Location -10/Materials Parts ------- > --- POWER (1) -------- (None) > --- PROPULSION (2) --- (None) > --- UTILITY (2) ------ Medium Storage Unit > --- WEAPON (2) ------- (None) > --- INVENTORY (10) --- Seismic Detector Peak State ------------ > --- POWER ------------ Light Ion Engine > --- PROPULSION ------- Wheel Wheel > --- UTILITY ---------- Improved Terrain Scanner Seismic Detector > --- WEAPON ----------- Light Assault Rifle Light Assault Rifle > --- INVENTORY -------- (None) [Rating: 9] Favorites ----------- Power Light Ion Engine Engine Light Ion Engine Propulsion Wheel Wheel Wheel Utility Improved Terrain Scanner Device Improved Terrain Scanner Storage Medium Storage Unit Weapon Light Assault Rifle Ballistic Gun Light Assault Rifle Build | -11 -10 ------- Run | Yrd Mat Slots Evolved . | . . Power . | . . Propulsion . | . . Utility . | . . Weapon . | . . Parts Attached 9 | 8 1 Power 2 | 2 . Engine 2 | 2 . Core . | . . Reactor . | . . Propulsion 2 | 2 . Treads . | . . Leg . | . . Wheel 2 | 2 . Hover . | . . Flight . | . . Utility 3 | 2 1 Device 2 | 2 . Storage 1 | . 1 Processor . | . . Hackware . | . . Protection . | . . Artifact . | . . Weapon 2 | 2 . Energy Gun . | . . Energy Cannon . | . . Ballistic Gun 2 | 2 . Ballistic Cannon . | . . Launcher . | . . Special Weapon . | . . Impact Weapon . | . . Slashing Weapon . | . . Piercing Weapon . | . . Special Melee Weapon . | . . Unidentified Prototypes . | . . Parts Lost 6 | . 6 Power 1 | . 1 Propulsion 2 | . 2 Utility 1 | . 1 Weapon 2 | . 2 Highest Loss Streak 6 | . 6 To Critical Strikes . | . . Average Slot Usage (%) 80 | . 80 Engine 10 | . 10 Wheel 20 | . 20 Device 11 | . 11 Storage 14 | . 14 Ballistic Gun 22 | . 22 Peak Build Rating 9 | 9 9 Average Rating 4 | 3 7 On Entrance 4 | . 9 Naked Turns . | . . Heaviest Build 16 | 7 16 Greatest Support 20 | 20 20 Greatest Overweight (x) 3 | . 3 Average Overweight (x) . | . . Largest Inventory Capacity 10 | 5 10 Average Capacity 6 | 5 9 Most Carried 1 | 1 1 Average Carried . | . 1 Final Capacity 10 | 5 10 Final Carried 1 | . 1 Class Distribution -------------------- 100% | Mutant Dominant Class ---------------- Mutant | -10/Materials Resources | -11 -10 ----------- Run | Yrd Mat Matter Collected 294 | 294 . Remotely . | . . Salvage Created 113 | 73 40 Parts 15 | 7 8 Haulers Intercepted . | . . Recyclers Shooed . | . . Parts Field Recycled . | . . Retrieved Matter . | . . Parts Self-Destructed . | . . Prevented . | . . Kills | -11 -10 ------- Run | Yrd Mat Combat Hostiles Destroyed 4 | 1 3 Guns 4 | 1 3 Classes Destroyed 3 | 2 1 Tunneler 2 | 2 . Swarmer 3 | . 3 Grunt 1 | 1 . Best Kill Streak 3 | 2 3 Combat Bots Only 3 | 1 3 Max Kills in Single Turn 2 | 1 2 Gunslinging 1 | . 1 Exploded . | . . Melee . | . . Uniques/NPCs Destroyed . | . . Combat | -11 -10 -------- Run | Yrd Mat Hostile Shots Fired 92 | 8 84 Missed 21 | 3 18 Damage Taken 641 | 56 585 Core 256 | 11 245 Absorbed by Shields . | . . Core Remaining (%) 95 | 95 . Volleys Fired 24 | 10 14 Largest 2 | 2 2 Hottest 40 | 40 40 Shots Fired 44 | 20 24 Gun 44 | 20 24 Cannon . | . . Launcher . | . . Special . | . . Kinetic 44 | 20 24 Thermal . | . . Explosive . | . . Electromagnetic . | . . Robot Hit Streak 10 | 9 10 Robot Miss Streak 5 | 1 5 Penetration Max . | . . Secondary Targets 1 | . 1 Max Gunslinging Chain 1 | . 1 Shots Hit Robots 28 | 16 12 Core Hits 14 | 6 8 Critical Kills 1 | 1 . Critical Parts Destroyed . | . . Critical Strikes 1 | 1 . Destroy 1 | 1 . Melee Attacks . | . . Impact . | . . Slashing . | . . Piercing . | . . Sneak Attacks . | . . Combat Hostiles . | . . Follow-up Attacks . | . . Damage Inflicted 225 | 121 104 Guns 225 | 121 104 Cannons . | . . Explosions . | . . Melee . | . . Ramming . | . . Kinetic 225 | 121 104 Thermal . | . . Explosive . | . . Electromagnetic . | . . Impact . | . . Slashing . | . . Piercing . | . . Highest Corruption . | . . Average Corruption . | . . Corruption Purged . | . . Corruption Blocked . | . . Overload Shots . | . . Overflow Damage . | . . Projectiles . | . . Explosions . | . . Melee . | . . Knockbacks . | . . Impact . | . . Kinetic . | . . Secondary . | . . Self-Inflicted Damage . | . . Shots . | . . Rammed . | . . Targets Rammed . | . . Kicked . | . . Crushed . | . . Highest Temperature 22 | 12 22 Average Temperature 8 | 7 9 Received Heat Transfer 117 | 30 87 Siege Activations . | . . Robots Corrupted . | . . Combat Hostiles . | . . Parts Fried . | . . Impact Corruptions . | . . Robots Melted . | . . Combat Hostiles . | . . Parts Melted . | . . Heat Transferred . | . . Parts Sabotaged . | . . Parts Stolen . | . . Parts Stripped . | . . Power Chain Reactions . | . . Alert | -11 -10 ------- Run | Yrd Mat Peak Influence 79 | 30 79 Initial 19 | . 19 Average 15 | 8 29 Maximum Alert Level . | . . Low Security (%) 100 | 100 100 Level 1 . | . . Level 2 . | . . Level 3 . | . . Level 4 . | . . Level 5 . | . . High Security . | . . Max Security . | . . Squads Dispatched 1 | . 1 Investigation . | . . Extermination . | . . Reinforcement 1 | . 1 Assault . | . . Garrison . | . . Intercept . | . . Searches Triggered . | . . Construction Impeded . | . . Haulers Reinforced . | . . Active Scanning Responses . | . . Cargo Convoy Interrupts . | . . Stealth | -11 -10 --------- Run | Yrd Mat Distress Signals . | . . Communications Jammed . | . . Distress Signals . | . . Times Spotted 11 | 1 10 Peak Tracking Total 8 | 1 8 Tactical Retreats . | . . Traps | -11 -10 ------- Run | Yrd Mat Traps Triggered . | . . Indirectly . | . . Trap Hack Attempts . | . . Triggered . | . . Disarmed . | . . Reprogrammed . | . . Reused . | . . Traps Extracted . | . . Installed . | . . Triggered . | . . Machines | -11 -10 ---------- Run | Yrd Mat Machines Disabled . | . . Max in Single Turn . | . . Machines Repaired . | . . Machines Dismantled . | . . Machines Sabotaged . | . . Overloaded Fab Kills . | . . Hacking | -11 -10 --------- Run | Yrd Mat Machines Accessed . | . . Terminals . | . . Fabricators . | . . Repair Stations . | . . Recycling Units . | . . Scanalyzers . | . . Garrison Access . | . . Total Hacks . | . . Successful . | . . Failed . | . . Catastrophic . | . . Database Lockouts . | . . Manual . | . . Terminals . | . . Fabricators . | . . Repair Stations . | . . Recycling Units . | . . Scanalyzers . | . . Garrison Access . | . . Terminal Hacks . | . . Fabricator Hacks . | . . Repair Station Hacks . | . . Recycling Unit Hacks . | . . Scanalyzer . | . . Garrison Access Hacks . | . . Unauthorized Hacks . | . . Terminals . | . . Fabricators . | . . Repair Stations . | . . Recycling Units . | . . Scanalyzers . | . . Garrison Access . | . . Data Cores Recovered . | . . Used . | . . Hacking Detections . | . . Full Trace Events . | . . Feedback Events . | . . Feedback Blocked . | . . Robot Schematics Acquired . | . . Robots Built . | . . Authchips . | . . Time . | . . Total Robot Build Rating . | . . Part Schematics Acquired . | . . Parts Built . | . . Authchips . | . . Time . | . . Total Part Build Rating . | . . Parts Repaired . | . . Time . | . . Parts Recycled . | . . Recycled Matter . | . . Retrieved Matter . | . . Retrieved Components . | . . Parts Scanalyzed . | . . Part Schematics Acquired . | . . Parts Damaged . | . . Bothacking | -11 -10 ------------ Run | Yrd Mat Used RIF Installer . | . . Robots Hacked . | . . Non-combat . | . . Combat . | . . Robot Hacks Applied . | . . Relay Couplers Released . | . . Fabnet Peak Effective % . | . . Robots Rewired . | . . Allies Hacked . | . . Hacks Repelled . | . . Allies | -11 -10 -------- Run | Yrd Mat Total Allies . | . . Largest Group . | . . Highest-Rated Group . | . . Highest-Rated Ally . | . . Total Orders . | . . Ally Attacks . | . . Total Damage . | . . Kills . | . . Allies Corrupted . | . . Allies Melted . | . . Intel | -11 -10 ------- Run | Yrd Mat Robot Analysis Total . | . . Derelict Logs Recovered . | . . Drone Launches . | . . Drone Recoveries . | . . Exploration | -11 -10 ------------- Run | Yrd Mat Turns Passed 342 | 229 113 Spaces Moved 332 | 245 87 Core 108 | 101 7 Treads . | . . Legs . | . . Wheels 224 | 144 80 Hover . | . . Flight . | . . Fastest Speed 50 | 50 80 Average Speed 73 | 67 90 Slowest Speed 200 | 80 200 Overloaded Moves . | . . Propulsion Burnouts . | . . Robots Hopped . | . . Cave-ins Triggered . | . . Exploration Rate (%) 12 | 7 17 Regions Visited 1 Branch Regions . Pre-discovered Areas . | . . Known Exits Taken . | . . Unknown Exits Taken 1 | 1 . Scrap Searched . | . . Spaces Dug . | . . Terrain Destroyed . | . . Melee . | . . Projectile . | . . AOE . | . . Terrain Rammed . | . . Walls Destroyed . | . . Machines Disabled . | . . Actions | -11 -10 --------- Run | Yrd Mat Total 392 | 289 103 Wait 25 | 25 . Move 331 | 244 87 Hop . | . . Pick Up 1 | 1 . Fast Attach 7 | 6 1 Attach 2 | 2 . Detach 2 | 1 1 Swap . | . . Drop . | . . Fire 24 | 10 14 Melee . | . . Ram . | . . Kick . | . . Crush . | . . Escape Stasis . | . . Rewire . | . . Trap . | . . Miscellaneous . | . . Route ------- -11/Scrapyard -10/Materials History --------- Turn | Location | Event 2 | -11/Scrapyard | Met Revision 17 127 | -11/Scrapyard | Discovered new exit (range 8) 230 | -11/Scrapyard | Entered Materials 313 | -10/Materials | Build established: Mutant 328 | -10/Materials | Core integrity fell below 50% 337 | -10/Materials | Core integrity fell below 20% 343 | -10/Materials | Destroyed by S-10 Pest with Light Assault Rifle Last Messages --------------- ALERT: Hostiles spotted, dispatching reinforcements to Terminal M004. [Achievement: Uninvited Guest] Lgt. Ion Engine destroyed. R-06 Scavenger collects Flight Unit. [Achievement: Storm Trooper] K-01 Serf collects debris. Lgt. Assault Rifle destroyed. R-06 Scavenger collects Lgt. Ion Engine. K-01 Serf collects debris. G-34 Mercenary destroyed. Wheel destroyed. K-01 Serf collects debris. Lgt. Assault Rifle destroyed. Critical hit (Burn: +37). Imp. Terrain Scanner destroyed. K-01 Serf collects debris. G-47 Trooper destroyed. K-01 Serf collects debris. [Achievement: First Step to Greatness] Map ----- +----------------------------------------------------+ | ?????????????????????????????????????????????????? | | ?????????????????????????????????????????????????? | | ?????????????????????????????????????????????????? | | ?????????????????????????????????????????????????? | | ?????????????????????????????????????????????????? | | ?????????????????????????????????????????????????? | | ????????????????????????#####????????????????????? | | ???????????????????????? ????????????????????? | | ????????????????????? ?? ????????????????????? | | ??????????????????????? ????????????????????? | | ?????????????#??????????# #????????????????????? | | ???????????????????????##[ ##???????????????????? | | ????????????????????????#%=k#????????????????????? | | ???????????##########???#= t#????????????????????? | | ???????????# #???# #?????????? ????????? | | ???????????# #???# #?????? ????????????? | | ???????????# #???# #????????????????????? | | ???????????# #???# #????????????????????? | | ???????????# #???# %=###????#????#????????? | | ???????????# #???# # #?????#????????????? | | ???????????# #?#?# % #????????#?????????? | | ???????????# #???# ###?????#???#????????? | | ???????????# #??## ###??????????????????? | | ??????#???######k####### ######??????????????? | | ??????????# k [%= #???? ?????????? | | ?????#????# @ s= [s#? ? ??????????? | | ??????????# su%=#??????????????? | | ??????????# ########## ## ! #??????????????? | | ??????????# #????????#######? ##?????????????? | | ??????????# #?#????#?????????? ?????????????? | | ?????????## #????????????????? ???????????? | | ??????????# #?????????????????? ????????? | | ??????????# ########??????#???? ????????? | | ??????????# ## #????? ?????? ????????? | | ??????##??# ##????? ????? ????????? | | ??????????# #????????????? ##????????? | | ?????????## #??#?#???????? ??????????? | | ??????????###### #?????????????? ????????????? | | ???????????????## ##???????????????????????????? | | ?#???????##?????# #????????????????????????????? | | ????????????????# #????????????????????????????? | | ?????????????#### #????????????????????????????? | | ????????????##! #???? ???????????????????????? | | ????????????#! #?????#??????????????????????? | | ??????????#?#! +????????????????????????????? | | ????????????#! #????????????????????????????? | | ??????????#?# #????????????????????????????? | | ????????????##! #????????????????????????????? | | ??????????#??########????????????????????????????? | | ?????????????????????????????????????????????????? | +----------------------------------------------------+ Best States ------------- Heat Dissipation 25 Energy Generation 10 Energy Capacity 125 Matter Stores 300 Matter Capacity 300 Sight Range 16 Terrain Scan Range 16 Terrain Scan Density 10 Evasion (%) 50 Item Schematics ----------------- None Robot Schematics ------------------ None Fabricated ------------ Nothing Alien Tech Used ----------------- None Achievements -------------- Crack Shot First Step to Greatness Storm Trooper Uninvited Guest Challenges ------------ None Game ------ Seed CryofiberAlphaPenetrator Manual? 0 Play Time 00:24:01 Cumulative 0.3 hours Start 2025.03.03 @ 14:58:25 End 2025.03.03 @ 16:07:36 Sessions 2 Manual Loads 0 Difficulty Rogue Special Mode None Game No. 1 Rogue 1 Adventurer 0 Explorer 0 Win Type - Total 0 Types 0/0/0/0/0/0/0/0/0 Lore% 0 Gallery% 0 Achievement% 1 Wizard Run 0 Options --------- Layout 2 ASCII 0 Keyboard 1 Movement Vi Keybinds 0 Fullscreen 1 Font 28/SmallcapsGlow Map View 25x26 Zoom Use 83% Tactical HUD 0 Map Filters NONE Filters NONE Steam 1 RUN: 3b86689f-a8da-4585-b3d3-2b9d6c4543ea